Cogmind - Beta 15 @@@ ROGUE MODE // 2025.08.29 @ 09:07:14 Player: beans Result: Destroyed by VH-WTW(g) with Salvaging Laser Performance ------------- Evolutions (0) 0 Regions Visited (3) 600 Robots Destroyed (16) 80 Value Destroyed (673) 673 Prototype IDs (10) 200 Alien Tech Used (0) 0 Bonus (791) 791 TOTAL SCORE: 2344 Bonus ------- Registered with UFD 300 Met Optimus in HQ 500 Friendly Fire -9 Cogmind --------- Core Integrity 0/250 Matter 295/300 Energy 340/340 System Corruption 0% Temperature Cool (7) Movement Treading (240) Ox1 Location -7/Scraptown Parts ------- > --- POWER (1) -------- Graviton Reactor > --- PROPULSION (2) --- Light Treads Light Treads > --- UTILITY (2) ------ Large Storage Unit Spectral Analyzer > --- WEAPON (2) ------- Helical Railgun > --- INVENTORY (15) --- Scrap Suit Signal Interpreter Surveybot 17 Chip Target Analyzer Scrapoid Pod Proton Cannon Heavy Ion Cannon Heavy Machine Gun Helical Railgun Rocket Launcher Rocket Launcher Heavy Rocket Launcher Botcube Peak State ------------ > --- POWER ------------ Graviton Reactor > --- PROPULSION ------- Overtuned Treads Overtuned Treads > --- UTILITY ---------- Large Storage Unit Spectral Analyzer > --- WEAPON ----------- Helical Railgun Helical Railgun > --- INVENTORY -------- Scrap Suit Signal Interpreter Surveybot 17 Chip Target Analyzer Scrapoid Pod Proton Cannon Heavy Ion Cannon Heavy Machine Gun Rocket Launcher Rocket Launcher Heavy Rocket Launcher Botcube [Rating: 49] Favorites ----------- Power Graviton Reactor Power Core Light Nuclear Core Reactor Graviton Reactor Propulsion VTOL Module Treads Overtuned Treads Flight Unit VTOL Module Utility Large Storage Unit Device Improved System Restoration Module Storage Large Storage Unit Processor Spectral Analyzer Weapon Proton Cannon Energy Gun EM Pulse Gun Energy Cannon Proton Cannon Ballistic Gun Helical Railgun Launcher Heavy Rocket Launcher Build | -11 -10 -10 -7 ------- Run | Yrd Mat Sub Scr Slots Evolved . | . . . . Power . | . . . . Propulsion . | . . . . Utility . | . . . . Weapon . | . . . . Parts Attached 25 | 4 2 1 18 Power 2 | . . . 2 Engine . | . . . . Core 1 | . . . 1 Reactor 1 | . . . 1 Propulsion 8 | 2 2 . 4 Treads 6 | 2 . . 4 Leg . | . . . . Wheel . | . . . . Hover . | . . . . Flight 2 | . 2 . . Utility 3 | . . 1 2 Device 1 | . . . 1 Storage 1 | . . 1 . Processor 1 | . . . 1 Hackware . | . . . . Protection . | . . . . Artifact . | . . . . Weapon 12 | 2 . . 10 Energy Gun 2 | 2 . . . Energy Cannon 2 | . . . 2 Ballistic Gun 6 | . . . 6 Ballistic Cannon . | . . . . Launcher 2 | . . . 2 Special Weapon . | . . . . Impact Weapon . | . . . . Slashing Weapon . | . . . . Piercing Weapon . | . . . . Special Melee Weapon . | . . . . Unidentified Prototypes 3 | . . . 3 Parts Lost 1 | . . . 1 Power 1 | . . . 1 Propulsion . | . . . . Utility . | . . . . Weapon . | . . . . Highest Loss Streak 1 | . . . 1 To Critical Strikes . | . . . . Average Backups 8 | . . 3 9 Power . | . . . . Propulsion . | . . . . Utility 1 | . . . 2 Weapon 5 | . . 3 6 Tool/Special . | . . . . Unused Backups 8 | . . . 8 Power . | . . . . Propulsion . | . . . . Utility 4 | . . . 4 Weapon 3 | . . . 3 Tool/Special 1 | . . . 1 Average Slot Usage (%) 58 | . 57 46 59 Treads 4 | . 18 . 3 Flight 23 | . 9 28 24 Storage 12 | . . 10 13 Processor 10 | . . . 11 Energy Gun 1 | . 28 7 . Energy Cannon 1 | . . . 1 Ballistic Gun 2 | . . . 2 Peak Build Rating 49 | 4 6 6 49 Average Rating 17 | 2 4 5 19 On Entrance 3 | . 4 6 5 Naked Turns . | . . . . Heaviest Build 45 | 4 4 20 45 Greatest Support 40 | 40 40 8 40 Greatest Overweight (x) 9 | . . 2 9 Average Overweight (x) 1 | . . 1 1 Largest Inventory Capacity 15 | 5 5 15 15 Average Capacity 14 | 5 5 12 14 Most Carried 15 | 2 4 4 15 Average Carried 10 | . 1 3 11 Final Capacity 15 | 5 5 15 15 Final Carried 15 | . 4 3 15 Class Distribution -------------------- 85% | Mutant 10% | Scavenger-Mutant 4% | Sprinter Dominant Class ---------------- Mutant | -10/Materials Mutant | -10/Subcaves Mutant | -7/Scraptown Resources | -11 -10 -10 -7 ----------- Run | Yrd Mat Sub Scr Matter Collected 934 | 233 22 5 674 Remotely . | . . . . Salvage Created 802 | . 15 . 787 Parts 46 | . 4 . 42 Haulers Intercepted . | . . . . Recyclers Shooed . | . . . . Parts Field Recycled . | . . . . Retrieved Matter . | . . . . Parts Self-Destructed 4 | . . 4 . Prevented . | . . . . Kills | -11 -10 -10 -7 ------- Run | Yrd Mat Sub Scr Combat Hostiles Destroyed 15 | . . . 15 Guns 6 | . . . 6 AOE 9 | . . . 9 Classes Destroyed 4 | . 1 . 3 Tunneler 1 | . 1 . . Federalist 3 | . . . 3 Explorer 2 | . . . 2 Scrapper 10 | . . . 10 Best Kill Streak 7 | . 1 . 7 Combat Bots Only 7 | . . . 7 Max Kills in Single Turn 3 | . 1 . 3 Gunslinging . | . . . . Exploded 3 | . . . 3 Melee . | . . . . Uniques/NPCs Destroyed . | . . . . Combat | -11 -10 -10 -7 -------- Run | Yrd Mat Sub Scr Hostile Shots Fired 67 | . 5 3 59 Missed 17 | . 1 2 14 Hits 50 | . 4 1 45 Melee 5 | . . . 5 Projectile 45 | . 4 1 40 Critical Strikes 5 | . . . 5 Damage Taken 954 | . 40 23 891 Core 257 | . 20 23 214 Absorbed by Shields . | . . . . Core Remaining (%) 100 | 100 . . . Volleys Fired 59 | . 3 3 53 Largest 2 | . 2 2 2 Hottest 108 | . 90 90 108 Shots Fired 80 | . 6 6 68 Gun 69 | . 6 6 57 Cannon 3 | . . . 3 Launcher 8 | . . . 8 Special . | . . . . Kinetic 57 | . . . 57 Thermal 8 | . 3 3 2 Explosive 8 | . . . 8 Electromagnetic 7 | . 3 3 1 Robot Hit Streak 8 | . 2 6 8 Robot Miss Streak 6 | . 1 1 6 Penetration Max . | . . . . Secondary Targets . | . . . . Shots Hit Robots 42 | . 3 5 34 Core Hits 30 | . 1 . 29 Critical Kills 1 | . . . 1 Critical Parts Destroyed 1 | . . . 1 Critical Strikes 5 | . . 3 2 Burn 2 | . . 2 . Destroy 2 | . . . 2 Corrupt 1 | . . 1 . Melee Attacks . | . . . . Impact . | . . . . Slashing . | . . . . Piercing . | . . . . Sneak Attacks . | . . . . Combat Hostiles . | . . . . Follow-up Attacks . | . . . . Damage Inflicted 1589 | . 40 59 1490 Guns 699 | . 40 59 600 Cannons 75 | . . . 75 Explosions 815 | . . . 815 Melee . | . . . . Ramming . | . . . . Kinetic 600 | . . . 600 Thermal 99 | . 12 38 49 Explosive 815 | . . . 815 Electromagnetic 75 | . 28 21 26 Impact . | . . . . Slashing . | . . . . Piercing . | . . . . Highest Corruption 2 | . 2 2 2 Average Corruption 1 | . 2 2 1 Corruption Purged 2 | . . . 2 Corruption Blocked . | . . . . Effects 35 | . . 1 34 Message Errors 9 | . . . 9 Matter Fused 11 | . . . 11 Heat Flow Errors 3 | . . 1 2 Energy Discharges 3 | . . . 3 Data Loss (minor) 5 | . . . 5 Data Loss (major) 3 | . . . 3 Alerts 1 | . . . 1 Overload Shots . | . . . . Overflow Damage . | . . . . Projectiles . | . . . . Explosions . | . . . . Melee . | . . . . Knockbacks . | . . . . Impact . | . . . . Kinetic . | . . . . Secondary . | . . . . Self-Inflicted Damage . | . . . . Shots . | . . . . Rammed . | . . . . Targets Rammed . | . . . . Kicked . | . . . . Crushed . | . . . . Highest Temperature 207 | . 25 157 207 Average Temperature 46 | . 11 82 47 Received Heat Transfer 569 | . 24 6 539 Siege Activations . | . . . . Martial Activations . | . . . . Shielding Activations . | . . . . Robots Disrupted . | . . . . Combat Hostiles . | . . . . Robots Corrupted . | . . . . Combat Hostiles . | . . . . Parts Fried . | . . . . Impact Corruptions . | . . . . Robots Melted . | . . . . Combat Hostiles . | . . . . Parts Melted 5 | . . . 5 Heat Transferred 383 | . 37 259 87 Parts Sabotaged . | . . . . Parts Stolen . | . . . . Parts Stripped . | . . . . Power Chain Reactions . | . . . . Alert | -11 -10 -10 -7 ------- Run | Yrd Mat Sub Scr Maximum Alert Level . | . . . . Low Security (%) 100 | 100 100 . . Level 1 . | . . . . Level 2 . | . . . . Level 3 . | . . . . Level 4 . | . . . . Level 5 . | . . . . High Security . | . . . . Max Security . | . . . . Peak Influence 75 | . 75 . . Initial . | . . . . Average 5 | . 7 . . Influence Increases 95 | . 95 . . Destroy 0b10 Robot/NC 5 | . 5 . . Partial Spotted 15 | . 15 . . Lose Combat Pursuer 75 | . 75 . . Influence Decreases 95 | . 30 65 . Entered New Map 32 | . . 32 . Time Decay 63 | . 30 33 . Squads Dispatched 3 | . 3 . . Investigation 1 | . 1 . . Extermination . | . . . . Reinforcement 2 | . 2 . . Assault . | . . . . Garrison . | . . . . Intercept . | . . . . Searches Triggered . | . . . . Construction Impeded . | . . . . Haulers Reinforced . | . . . . Active Scanning Responses . | . . . . Cargo Convoy Interrupts . | . . . . Stealth | -11 -10 -10 -7 --------- Run | Yrd Mat Sub Scr Distress Signals 1 | . 1 . . Communications Jammed . | . . . . Distress Signals . | . . . . Times Spotted 57 | . 13 1 43 Peak Tracking Total 6 | . 6 1 5 Tactical Retreats 3 | . 2 . 1 Traps | -11 -10 -10 -7 ------- Run | Yrd Mat Sub Scr Traps Triggered 1 | . 1 . . Indirectly . | . . . . Trap Hack Attempts . | . . . . Triggered . | . . . . Disarmed . | . . . . Reprogrammed . | . . . . Reused . | . . . . Traps Extracted . | . . . . Installed . | . . . . Triggered . | . . . . Machines | -11 -10 -10 -7 ---------- Run | Yrd Mat Sub Scr Machines Disabled 1 | . . . 1 Max in Single Turn 1 | . . . 1 Machines Repaired . | . . . . Machines Dismantled . | . . . . Machines Sabotaged . | . . . . Overloaded Fab Kills . | . . . . Hacking | -11 -10 -10 -7 --------- Run | Yrd Mat Sub Scr Machines Accessed 4 | . . . 4 Terminals . | . . . . Fabricators . | . . . . Repair Stations . | . . . . Recycling Units . | . . . . Scanalyzers . | . . . . Garrison Access . | . . . . Total Hacks 41 | . . . 41 Successful 41 | . . . 41 Failed . | . . . . Catastrophic . | . . . . Database Lockouts . | . . . . Manual . | . . . . Terminals . | . . . . Fabricators . | . . . . Repair Stations . | . . . . Recycling Units . | . . . . Scanalyzers . | . . . . Garrison Access . | . . . . Terminal Hacks 41 | . . . 41 Record 41 | . . . 41 Fabricator Hacks . | . . . . Repair Station Hacks . | . . . . Recycling Unit Hacks . | . . . . Scanalyzer . | . . . . Garrison Access Hacks . | . . . . Unauthorized Hacks . | . . . . Terminals . | . . . . Fabricators . | . . . . Repair Stations . | . . . . Recycling Units . | . . . . Scanalyzers . | . . . . Garrison Access . | . . . . Data Cores Recovered . | . . . . Used . | . . . . Hacking Detections . | . . . . Full Trace Events . | . . . . Feedback Events . | . . . . Feedback Blocked . | . . . . Robot Schematics Acquired . | . . . . Robots Built . | . . . . Authchips . | . . . . Time . | . . . . Total Robot Build Rating . | . . . . Part Schematics Acquired . | . . . . Parts Built . | . . . . Authchips . | . . . . Time . | . . . . Total Part Build Rating . | . . . . Parts Repaired . | . . . . Time . | . . . . Parts Recycled . | . . . . Recycled Matter . | . . . . Retrieved Matter . | . . . . Retrieved Components . | . . . . Parts Scanalyzed . | . . . . Part Schematics Acquired . | . . . . Parts Damaged . | . . . . Bothacking | -11 -10 -10 -7 ------------ Run | Yrd Mat Sub Scr Used RIF Installer . | . . . . Robots Hacked . | . . . . Non-combat . | . . . . Combat . | . . . . Robot Hacks Applied . | . . . . Relay Couplers Released . | . . . . Fabnet Peak Effective % . | . . . . Robots Rewired . | . . . . Allies Hacked . | . . . . Hacks Repelled . | . . . . Allies | -11 -10 -10 -7 -------- Run | Yrd Mat Sub Scr Total Allies . | . . . . Largest Group . | . . . . Highest-Rated Group . | . . . . Highest-Rated Ally . | . . . . Total Orders . | . . . . Ally Attacks . | . . . . Total Damage . | . . . . Kills . | . . . . Allies Corrupted . | . . . . Allies Melted 12 | . . . 12 Intel | -11 -10 -10 -7 ------- Run | Yrd Mat Sub Scr Active Infowar (turns) 3892 | . . . 3892 Optics 3892 | . . . 3892 Robot Analysis Total . | . . . . Derelict Logs Recovered 1 | . . 1 . Drone Launches . | . . . . Drone Recoveries . | . . . . Exploration | -11 -10 -10 -7 ------------- Run | Yrd Mat Sub Scr Turns Passed 5308 | 61 200 251 4796 Spaces Moved 2594 | 44 241 98 2211 Core 23 | 15 . . 8 Treads 381 | 29 74 . 278 Legs . | . . . . Wheels . | . . . . Hover . | . . . . Flight 2190 | . 167 98 1925 Fastest Speed 32 | 50 32 32 32 Average Speed 172 | 122 71 129 186 Slowest Speed 500 | 160 160 192 500 Overloaded Moves . | . . . . Propulsion Burnouts . | . . . . Robots Hopped 1 | . 1 . . Potential Cave-ins . | . . . . Cave-ins Triggered . | . . . . Exploration Rate (%) 40 | 3 60 10 90 Regions Visited 3 Branch Regions 2 Pre-discovered Areas 5 | . . . 5 Known Exits Taken . | . . . . Unknown Exits Taken 3 | 1 1 1 . Scrap Searched 5 | . . . 5 Spaces Dug 4 | . . . 4 Terrain Destroyed 58 | . . . 58 Melee . | . . . . Projectile 8 | . . . 8 AOE 50 | . . . 50 Terrain Rammed . | . . . . Walls Destroyed . | . . . . Machines Disabled . | . . . . Actions | -11 -10 -10 -7 --------- Run | Yrd Mat Sub Scr Total 3357 | 51 261 217 2828 Wait 611 | . 9 114 488 Move 2589 | 43 238 97 2211 Hop 1 | . 1 . . Pick Up 43 | 4 6 . 33 Fast Attach 11 | . . . 11 Attach 14 | 4 . 1 9 Detach 4 | . . . 4 Swap 7 | . 2 . 5 Drop 18 | . 2 2 14 Fire 59 | . 3 3 53 Melee . | . . . . Ram . | . . . . Kick . | . . . . Crush . | . . . . Escape Stasis . | . . . . Rewire . | . . . . Trap . | . . . . Miscellaneous . | . . . . Route ------- -11/Scrapyard -10/Materials (discovered 3 exits: [*Mat x2] / [*Sub]) -10/Subcaves -7/Scraptown (discovered 2 exits: *Fac x2) History --------- Turn | Location | Event 25 | -11/Scrapyard | Discovered new exit (range 15) 62 | -11/Scrapyard | Entered Materials 63 | -10/Materials | Met a group of wandering Federalists 225 | -10/Materials | Discovered new exit (range 3) 248 | -10/Materials | Discovered new exit (range 15) 257 | -10/Materials | Discovered new exit (range 8) 262 | -10/Materials | Entered Subcaves 262 | -10/Subcaves | Accompanied by 3 allies 263 | -10/Subcaves | Continued accompanying wandering Federalists (3) 386 | -10/Subcaves | Learned Materials terminal intel 486 | -10/Subcaves | Wandering Federalist uncovered a shortcut to Scraptown 513 | -10/Subcaves | Entered Scraptown 626 | -7/Scraptown | Build established: Mutant 980 | -7/Scraptown | Heard Great Nut preacher, LISTEN AND RECITE! 1166 | -7/Scraptown | Visited UFD Registry 1166 | -7/Scraptown | Registered with UFD as "Biobay" 1224 | -7/Scraptown | Visited Botcube Research 1243 | -7/Scraptown | Found Botcube 1276 | -7/Scraptown | Visited Analyses Database 1315 | -7/Scraptown | Visited Junk Repository 1382 | -7/Scraptown | Visited Infowarlord's Domain 1394 | -7/Scraptown | Found Spectral Analyzer 1439 | -7/Scraptown | Visited Supply Room 1491 | -7/Scraptown | Visited Scrapoid Pod Storage 1500 | -7/Scraptown | Found Scrapoid Pod 1563 | -7/Scraptown | Visited Curators Association 1626 | -7/Scraptown | Visited Cartography Club 1666 | -7/Scraptown | Found Surveybot 17 Chip 1791 | -7/Scraptown | Learned location of Lower Caves (-7) 1791 | -7/Scraptown | Learned location of Cetus (-5) 1791 | -7/Scraptown | Learned location of Archives (-5) 1791 | -7/Scraptown | Learned location of Armory (-3) 1791 | -7/Scraptown | Learned 12 Factory zone layouts 1791 | -7/Scraptown | Learned 20 Factory zone layouts 1791 | -7/Scraptown | Learned 8 Research zone layouts 1791 | -7/Scraptown | Learned 12 Lower Caves zone layouts 1791 | -7/Scraptown | Learned 8 Upper Caves zone layouts 1791 | -7/Scraptown | Learned location of 1 exit from Factory 1791 | -7/Scraptown | Learned location of 1 exit from Research 1791 | -7/Scraptown | Learned location of 1 exit from Proximity Caves 1791 | -7/Scraptown | Identified exit to Factory 1904 | -7/Scraptown | Visited Scrap Suit Storage 1913 | -7/Scraptown | Found Scrap Suit 2565 | -7/Scraptown | Visited Assassins FH 3081 | -7/Scraptown | Visited Shadow of the Wyrm 3104 | -7/Scraptown | Visited Spacefarers 3550 | -7/Scraptown | Visited Symbiants 3665 | -7/Scraptown | Visited Red Mages 4109 | -7/Scraptown | Met Optimus 4109 | -7/Scraptown | Accepted into 0bPrime 4509 | -7/Scraptown | Civil war broke out across Scraptown 4625 | -7/Scraptown | Lost 4 allies 4631 | -7/Scraptown | Destroyed 7 combat bots 4647 | -7/Scraptown | Optimus destroyed in the chaos of civil war 4982 | -7/Scraptown | Core integrity fell below 50% 5008 | -7/Scraptown | Core integrity fell below 20% 5083 | -7/Scraptown | Build established: Scavenger-Mutant 5123 | -7/Scraptown | Lost 10 allies 5309 | -7/Scraptown | Destroyed by VH-WTW(g) with Salvaging Laser Last Messages --------------- AY-UVK(E) destroyed. Acquired 5 matter. 9L-H6H(x) destroyed. YL-UIA(h): "Stop this nonsense!" Slug penetrates 9K-7P5(j). 9K-7P5(j) suffers critical hit (Destroy). Destroyed Lgt. Deuterium Engine. Slug penetrates Wall. Acquired 5 matter. Critical hit (Burn: +50). Slug penetrates Earth. Acquired 5 matter. GZ-GFI(j) destroyed. 3T-17Q(g) destroyed. 9K-7P5(j) destroyed. QL-7CG(x) destroyed. R2-92J(j) cannibalizes Ovr. Titanium Leg to repair Ovr. Titanium Leg. R2-92J(j) cannibalizes Ovr. Pulse Rifle to repair Ovr. Pulse Rifle. Map ----- +----------------------------------------------------+ | | | ?????????????????????????????????????????????????? | | ?????????????????????????????????????????????????? | | ?????????????????????????????????????????????????? | | ?????????????????????????????????????????????????? | | ?????????????????????????????????????????????????? | | ?????????????????????????????????????????????????? | | ?????????????????????????????????????????????????? | | ?????????????????????????????????????????????????? | | ?????????????????????????????????????????????????? | | ?????????????????????????????????????????????????? | | ?????????????????????????????????????????????????? | | ?????????????????????????????????????????????????? | | ????????????????????????###??????????????????????? | | ???????????????????????##;;??????????????????????? | | ??????????????????????##!!##??????